[Event "Norwegian Team Championship 2019"]
[Site "Drammen"]
[Date "2019.06.01"]
[Round "3.16"]
[White "Dolzhikova, Olga"]
[Black "Juriloo, Karl"]
[Result "1/2-1/2"]
[ECO "B22"]
[WhiteElo "2210"]
[BlackElo "1978"]
[Annotator "ChessBase"]
[PlyCount "120"]
[EventDate "2019.05.30"]
[EventType "swiss"]
[EventCountry "NOR"]
[SourceTitle "playchess.com"]
[Source "ChessBase"]
[SourceQuality "1"]
[TimeControl "40/5400:1800"]

1. e4 {[%emt 0:00:00]} c5 {[%emt 0:00:08]} 2. c3 {[%emt 0:00:04]} d5 {[%emt 0:00:16]} 3. exd5 {[%emt 0:00:04]} Qxd5 {[%emt 0:00:05]} 4. d4 {[%emt 0:00:02]} Nf6 {[%emt 0:00:18]} 5. Nf3 {[%emt 0:00:23]} e6 {[%emt 0:01:04]} 6. Bd3 {[%emt 0:00:21]} Be7 {[%emt 0:00:45]} 7. O-O {[%emt 0:01:16]} O-O {[%emt 0:00:08]} 8. Be3 {[%emt 0:01:37]} b6 {[%emt 0:11:01]} 9. Qe2 {[%emt 0:11:37]} Bb7 {[%emt 0:02:35]} 10. dxc5 {[%emt 0:04:01]} Ng4 {[%emt 0:18:42]} 11. Nbd2 {[%emt 0:31:05]} Nxe3 {[%emt 0:20:57]} 12. Be4 {[%emt 0:02:26]} Qh5 {[%emt 0:02:24]} 13. Bxb7 {[%emt 0:03:16]} Nxf1 {[%emt 0:00:07]} 14. Nxf1 {[%emt 0:00:53]} Nd7 {[%emt 0:00:35]} 15. Bxa8 {[%emt 0:00:28]} Rxa8 {[%emt 0:00:09]} 16. cxb6 {[%emt 0:00:13]} axb6 {[%emt 0:02:18]} 17. Ng3 {[%emt 0:01:38]} Qg4 {[%emt 0:04:46]} 18. h3 {[%emt 0:02:59]} Qf4 {[%emt 0:01:20]} 19. Qe4 {[%emt 0:03:55]} Qxe4 {[%emt 0:00:09]} 20. Nxe4 {[%emt 0:00:03]} f5 {[%emt 0:00:35]} 21. Ned2 {[%emt 0:00:10]} Bf6 {[%emt 0:01:58]} 22. Nb3 {[%emt 0:00:55]} e5 {[%emt 0:01:05]} 23. Kf1 {[%emt 0:00:47]} Kf7 {[%emt 0:00:07]} 24. Ke2 {[%emt 0:00:10]} Ra4 {[%emt 0:00:52]} 25. a3 {[%emt 0:01:22]} g5 {[%emt 0:00:58]} 26. Rd1 {[%emt 0:01:14]} Ke6 {[%emt 0:00:13]} 27. Ne1 {[%emt 0:02:52]} h5 {[%emt 0:04:47]} 28. Nc2 {[%emt 0:00:32]} Nc5 {[%emt 0:00:12]} 29. Nxc5+ {[%emt 0:06:30]} bxc5 {[%emt 0:00:06]} 30. Ne3 {[%emt 0:01:09]} e4 {[%emt 0:00:42]} 31. Nd5 {[%emt 0:01:29]} Be5 {[%emt 0:00:20]} 32. Nb6 {[%emt 0:00:28]} Ra7 {[%emt 0:01:32]} 33. Nc4 {[%emt 0:00:36]} Rb7 {[%emt 0:00:12]} 34. Rd8 {[%emt 0:00:30]} f4 {[%emt 0:00:59]} 35. Re8+ {[%emt 0:02:37]} Kd5 {[%emt 0:00:06]} 36. Rxe5+ {[%emt 0:00:17]} Kxc4 {[%emt 0:00:13]} 37. b4 {[%emt 0:00:08]} cxb4 {[%emt 0:01:03]} 38. cxb4 {[%emt 0:00:40]} Kd4 {[%emt 0:00:15]} 39. Rxg5 {[%emt 0:00:15]} Ra7 {[%emt 0:00:44]} 40. Ra5 {[%emt 0:00:26]} Rc7 {[%emt 0:00:21]} 41. Rc5 {[%emt 0:07:12]} Ra7 {[%emt 0:00:16]} 42. f3 {[%emt 0:06:08]} Rxa3 {[%emt 0:04:52]} 43. fxe4 {[%emt 0:00:07]} Rb3 {[%emt 0:06:21]} 44. Rxh5 {[%emt 0:01:22]} Kxe4 {[%emt 0:00:30]} 45. b5 {[%emt 0:09:05]} Rb2+ {[%emt 0:03:47]} 46. Kf1 {[%emt 0:00:03]} Rb1+ {[%emt 0:00:36]} 47. Kf2 {[%emt 0:00:05]} Rb2+ {[%emt 0:00:07]} 48. Kg1 {[%emt 0:00:18]} f3 {[%emt 0:03:22]} 49. gxf3+ {[%emt 0:00:20]} Kxf3 {[%emt 0:00:11]} 50. Rf5+ {[%emt 0:02:15]} Kg3 {[%emt 0:02:34]} 51. Rg5+ {[%emt 0:00:49]} Kxh3 {[%emt 0:00:50]} 52. Kf1 {[%emt 0:00:07]} Kh4 {[%emt 0:00:06]} 53. Rc5 {[%emt 0:00:06]} Kg4 {[%emt 0:00:28]} 54. Ke1 {[%emt 0:00:03]} Kf4 {[%emt 0:00:12]} 55. Kd1 {[%emt 0:00:11]} Ke4 {[%emt 0:00:10]} 56. Rh5 {[%emt 0:00:12]} Kd3 {[%emt 0:01:19]} 57. Kc1 {[%emt 0:00:04]} Rb4 {[%emt 0:00:26]} 58. Rg5 {[%emt 0:00:08]} Kc4 {[%emt 0:00:13]} 59. Rg4+ {[%emt 0:00:19]} Kxb5 {[%emt 0:00:05]} 60. Rxb4+ {[%emt 0:00:03]} Kxb4 {[%emt 0:00:05]} 1/2-1/2

[Event "Norwegian Team Championship 2019"]
[Site "Drammen"]
[Date "2019.06.01"]
[Round "3.17"]
[White "Kaasen, Tor Fredrik"]
[Black "Abdrlauf, Elham"]
[Result "1/2-1/2"]
[ECO "D15"]
[WhiteElo "2398"]
[BlackElo "2231"]
[Annotator "ChessBase"]
[PlyCount "58"]
[EventDate "2019.05.30"]
[EventType "swiss"]
[EventCountry "NOR"]
[SourceTitle "playchess.com"]
[Source "ChessBase"]
[SourceQuality "1"]
[TimeControl "40/5400:1800"]

1. Nf3 {[%emt 0:00:36]} d5 {[%emt 0:00:13]} 2. d4 {[%emt 0:00:26]} Nf6 {[%emt 0:00:20]} 3. c4 {[%emt 0:00:29]} c6 {[%emt 0:00:15]} 4. Nc3 {[%emt 0:01:33]} a6 {[%emt 0:07:35]} 5. e3 {[%emt 0:01:47]} Bf5 {[%emt 0:02:18]} 6. Be2 {[%emt 0:02:30]} b5 {[%emt 0:05:27]} 7. b3 {[%emt 0:01:26]} Nbd7 {[%emt 0:02:25]} 8. O-O {[%emt 0:00:36]} e6 {[%emt 0:01:28]} 9. Bb2 {[%emt 0:01:10]} Rb8 {[%emt 0:08:18]} 10. c5 {[%emt 0:04:52]} Bg4 {[%emt 0:03:44]} 11. Re1 {[%emt 0:01:13]} Be7 {[%emt 0:02:46]} 12. Nd2 {[%emt 0:06:20]} Bf5 {[%emt 0:01:44]} 13. Bf1 {[%emt 0:02:32]} O-O {[%emt 0:02:54]} 14. h3 {[%emt 0:02:16]} Qc7 {[%emt 0:06:20]} 15. g4 {[%emt 0:01:28]} Bg6 {[%emt 0:00:02]} 16. f4 {[%emt 0:00:24]} b4 {[%emt 0:08:39]} 17. Ne2 {[%emt 0:01:08]} Ne4 {[%emt 0:00:23]} 18. Nxe4 {[%emt 0:00:50]} Bxe4 {[%emt 0:00:02]} 19. Ng3 {[%emt 0:00:07]} Bh4 {[%emt 0:00:04]} 20. Kh2 {[%emt 0:06:38]} a5 {[%emt 0:16:11]} 21. Bg2 {[%emt 0:06:51]} Bxg2 {[%emt 0:00:12]} 22. Kxg2 {[%emt 0:00:05]} Bxg3 {[%emt 0:00:04]} 23. Kxg3 {[%emt 0:00:09]} Nf6 {[%emt 0:00:04]} 24. Qe2 {[%emt 0:03:36]} Ne4+ {[%emt 0:00:19]} 25. Kg2 {[%emt 0:00:07]} Ra8 {[%emt 0:01:05]} 26. a4 {[%emt 0:04:27]} bxa3 {[%emt 0:00:14]} 27. Rxa3 {[%emt 0:00:06]} Rab8 {[%emt 0:00:23]} 28. Rea1 {[%emt 0:01:39]} Rb5 {[%emt 0:00:02]} 29. Qc2 {[%emt 0:00:59]} Rfb8 {[%emt 0:05:48]} 1/2-1/2

[Event "Norwegian Team Championship 2019"]
[Site "Drammen"]
[Date "2019.06.01"]
[Round "3.18"]
[White "Melaa, Sondre"]
[Black "Fossum, Oystein Boyum"]
[Result "0-1"]
[ECO "A45"]
[WhiteElo "2038"]
[BlackElo "2258"]
[Annotator "ChessBase"]
[PlyCount "199"]
[EventDate "2019.05.30"]
[EventType "swiss"]
[EventCountry "NOR"]
[SourceTitle "playchess.com"]
[Source "ChessBase"]
[SourceQuality "1"]
[TimeControl "40/5400:1800"]

1. d4 {[%emt 0:00:04]} Nf6 {[%emt 0:01:27]} 2. Bg5 {[%emt 0:00:37]} e6 {[%emt 0:01:00]} 3. e4 {[%emt 0:00:55]} c5 {[%emt 0:00:32]} 4. e5 {[%emt 0:14:55]} h6 {[%emt 0:00:20]} 5. Bc1 {[%emt 0:01:34]} Nd5 {[%emt 0:01:15]} 6. c4 {[%emt 0:01:18]} Nb6 {[%emt 0:01:25]} 7. Be3 {[%emt 0:04:21]} cxd4 {[%emt 0:06:25]} 8. Bxd4 {[%emt 0:09:54]} Qc7 {[%emt 0:14:13]} 9. a3 {[%emt 0:18:43]} Nc6 {[%emt 0:04:58]} 10. Nf3 {[%emt 0:01:04]} Nxd4 {[%emt 0:02:59]} 11. Qxd4 {[%emt 0:00:53]} d6 {[%emt 0:01:02]} 12. Nc3 {[%emt 0:04:25]} Bd7 {[%emt 0:01:48]} 13. exd6 {[%emt 0:02:23]} Qxd6 {[%emt 0:02:19]} 14. Qxd6 {[%emt 0:01:43]} Bxd6 {[%emt 0:00:04]} 15. b4 {[%emt 0:00:12]} Na4 {[%emt 0:05:30]} 16. Ne4 {[%emt 0:03:43]} Bf4 {[%emt 0:08:02]} 17. Bd3 {[%emt 0:03:39]} Rc8 {[%emt 0:09:05]} 18. c5 {[%emt 0:02:21]} b6 {[%emt 0:08:04]} 19. g3 {[%emt 0:00:51]} Bb8 {[%emt 0:00:44]} 20. Ba6 {[%emt 0:01:16]} Rd8 {[%emt 0:01:01]} 21. Rc1 {[%emt 0:03:56]} Bc6 {[%emt 0:01:39]} 22. Ned2 {[%emt 0:01:29]} bxc5 {[%emt 0:02:29]} 23. O-O {[%emt 0:01:16]} Bd6 {[%emt 0:00:52]} 24. Kg2 {[%emt 0:02:00]} O-O {[%emt 0:02:59]} 25. Nc4 {[%emt 0:01:34]} cxb4 {[%emt 0:00:36]} 26. Rfd1 {[%emt 0:00:43]} Be7 {[%emt 0:01:09]} 27. axb4 {[%emt 0:00:08]} Bxb4 {[%emt 0:00:20]} 28. Nce5 {[%emt 0:00:12]} Bd5 {[%emt 0:00:42]} 29. Rd4 {[%emt 0:01:13]} Bxf3+ {[%emt 0:02:20]} 30. Nxf3 {[%emt 0:00:02]} Rxd4 {[%emt 0:00:14]} 31. Nxd4 {[%emt 0:00:01]} Nc5 {[%emt 0:00:04]} 32. Bb5 {[%emt 0:00:32]} a6 {[%emt 0:02:29]} 33. Rc4 {[%emt 0:00:24]} Ba3 {[%emt 0:00:58]} 34. Bc6 {[%emt 0:00:16]} Rc8 {[%emt 0:00:13]} 35. Bf3 {[%emt 0:00:05]} a5 {[%emt 0:00:18]} 36. Nc2 {[%emt 0:00:17]} Bc1 {[%emt 0:00:05]} 37. Nd4 {[%emt 0:00:06]} Ba3 {[%emt 0:00:11]} 38. Nc6 {[%emt 0:00:04]} Rc7 {[%emt 0:00:04]} 39. Nxa5 {[%emt 0:00:03]} Kf8 {[%emt 0:00:02]} 40. Rc2 {[%emt 0:00:19]} Ke7 {[%emt 0:00:01]} 41. Nc4 {[%emt 0:30:01]} Bb4 {[%emt 0:30:01]} 42. Nb6 {[%emt 0:00:02]} Kd6 {[%emt 0:00:03]} 43. Rc4 {[%emt 0:00:00]} Ba5 {[%emt 0:00:00]} 44. Na4 {[%emt 0:00:00]} Nd7 {[%emt 0:00:00]} 45. Rxc7 {[%emt 0:00:00]} Kxc7 {[%emt 0:00:00]} 46. Nb2 {[%emt 0:00:00]} Bc3 {[%emt 0:00:00]} 47. Nc4 {[%emt 0:00:00]} Bd4 {[%emt 0:00:00]} 48. Kf1 {[%emt 0:00:00]} Nc5 {[%emt 0:00:00]} 49. Ke2 {[%emt 0:00:00]} Kd7 {[%emt 0:00:00]} 50. Nd2 {[%emt 0:00:00]} f5 {[%emt 0:00:00]} 51. Bg2 {[%emt 0:00:00]} Ke7 {[%emt 0:00:00]} 52. f4 {[%emt 0:00:00]} Kf6 {[%emt 0:00:00]} 53. Nf3 {[%emt 0:00:00]} Bc3 {[%emt 0:00:00]} 54. Ke3 {[%emt 0:00:00]} g5 {[%emt 0:00:00]} 55. h3 {[%emt 0:00:00]} Ba5 {[%emt 0:00:00]} 56. Ne5 {[%emt 0:00:00]} Be1 {[%emt 0:00:00]} 57. Kf3 {[%emt 0:00:00]} Ne4 {[%emt 0:00:00]} 58. g4 {[%emt 0:00:00]} gxf4 {[%emt 0:00:00]} 59. Nd3 {[%emt 0:00:00]} Bd2 {[%emt 0:00:00]} 60. Nxf4 {[%emt 0:00:00]} Ng5+ {[%emt 0:00:00]} 61. Kg3 {[%emt 0:00:00]} Be1+ {[%emt 0:00:00]} 62. Kh2 {[%emt 0:00:00]} Bh4 {[%emt 0:00:00]} 63. gxf5 {[%emt 0:00:00]} Kxf5 {[%emt 0:00:00]} 64. Ne2 {[%emt 0:00:00]} e5 {[%emt 0:00:00]} 65. Bc6 {[%emt 0:00:00]} e4 {[%emt 0:00:00]} 66. Ng3+ {[%emt 0:00:00]} Bxg3+ {[%emt 0:00:00]} 67. Kxg3 {[%emt 0:00:00]} Nf3 {[%emt 0:00:00]} 68. Bb7 {[%emt 0:00:00]} Nd2 {[%emt 0:00:00]} 69. Ba6 {[%emt 0:00:00]} Nb3 {[%emt 0:00:00]} 70. Kh4 {[%emt 0:00:00]} Nc5 {[%emt 0:00:00]} 71. Be2 {[%emt 0:00:00]} Nd3 {[%emt 0:00:00]} 72. Bd1 {[%emt 0:00:00]} Nf4 {[%emt 0:00:00]} 73. Kg3 {[%emt 0:00:00]} Kg5 {[%emt 0:00:00]} 74. Bc2 {[%emt 0:00:00]} Kf5 {[%emt 0:00:00]} 75. Bd1 {[%emt 0:00:00]} Ke5 {[%emt 0:00:00]} 76. Kg4 {[%emt 0:00:00]} h5+ {[%emt 0:00:00]} 77. Kg5 {[%emt 0:00:00]} Nxh3+ {[%emt 0:00:00]} 78. Kxh5 {[%emt 0:00:00]} Nf2 {[%emt 0:00:00]} 79. Be2 {[%emt 0:00:00]} Kf4 {[%emt 0:00:00]} 80. Kh4 {[%emt 0:00:00]} Ke3 {[%emt 0:00:00]} 81. Bh5 {[%emt 0:00:00]} Nd3 {[%emt 0:00:00]} 82. Kg3 {[%emt 0:00:01]} Nf4 {[%emt 0:00:00]} 83. Bg4 {[%emt 0:00:04]} Ne2+ {[%emt 0:00:00]} 84. Kg2 {[%emt 0:00:02]} Kd2 {[%emt 0:00:00]} 85. Kf2 {[%emt 0:00:01]} Nf4 {[%emt 0:00:00]} 86. Bd7 {[%emt 0:00:05]} Nd3+ {[%emt 0:00:00]} 87. Kf1 {[%emt 0:00:01]} Nf4 {[%emt 0:00:00]} 88. Kf2 {[%emt 0:00:03]} e3+ {[%emt 0:00:00]} 89. Kf3 {[%emt 0:00:03]} e2 {[%emt 0:00:00]} 90. Kxf4 {[%emt 0:00:01]} e1=Q {[%emt 0:00:00]} 91. Bf5 {[%emt 0:00:00]} Qe3+ 92. Kg4 Kc3 {[%emt 0:00:00]} 93. Kh5 Kd4 94. Kg6 {[%emt 0:00:02]} Qf4 {[%emt 0:00:00]} 95. Kf6 Qe5+ 96. Kg6 {[%emt 0:00:01]} Kc5 97. Kg5 Kd6 98. Kg4 Qf6 {[%emt 0:00:00]} 99. Kf4 {[%emt 0:00:01]} Kd5 {[%emt 0:00:00]} 100. Kf3 0-1

[Event "Norwegian Team Championship 2019"]
[Site "Drammen"]
[Date "2019.06.01"]
[Round "3.19"]
[White "Kvisvik, Brede Alex."]
[Black "Tunsjo, Axel"]
[Result "1-0"]
[ECO "E01"]
[WhiteElo "2244"]
[BlackElo "2002"]
[Annotator "ChessBase"]
[PlyCount "67"]
[EventDate "2019.05.30"]
[EventType "swiss"]
[EventCountry "NOR"]
[SourceTitle "playchess.com"]
[Source "ChessBase"]
[SourceQuality "1"]
[TimeControl "40/5400:1800"]

1. d4 {[%emt 0:00:02]} Nf6 {[%emt 0:00:58]} 2. c4 {[%emt 0:00:29]} e6 {[%emt 0:01:07]} 3. g3 {[%emt 0:00:08]} d5 {[%emt 0:04:44]} 4. Bg2 {[%emt 0:00:26]} c6 {[%emt 0:00:46]} 5. Nf3 {[%emt 0:00:21]} Bd6 {[%emt 0:02:09]} 6. O-O {[%emt 0:00:11]} O-O {[%emt 0:00:10]} 7. Nfd2 {[%emt 0:00:02]} Nbd7 {[%emt 0:02:07]} 8. Nc3 {[%emt 0:01:17]} Re8 {[%emt 0:04:22]} 9. e4 {[%emt 0:00:06]} dxe4 {[%emt 0:00:07]} 10. Ndxe4 {[%emt 0:00:31]} Nxe4 {[%emt 0:00:43]} 11. Nxe4 {[%emt 0:00:07]} Be7 {[%emt 0:00:26]} 12. Qc2 {[%emt 0:03:53]} Nf6 {[%emt 0:24:50]} 13. Rd1 {[%emt 0:00:15]} h6 {[%emt 0:00:59]} 14. Bf4 {[%emt 0:06:29]} Nxe4 {[%emt 0:06:10]} 15. Bxe4 {[%emt 0:00:29]} Bd7 {[%emt 0:00:18]} 16. d5 {[%emt 0:05:30]} cxd5 {[%emt 0:02:22]} 17. cxd5 {[%emt 0:00:23]} Qb6 {[%emt 0:03:40]} 18. Bc7 {[%emt 0:06:03]} Qb5 {[%emt 0:05:28]} 19. Rd4 {[%emt 0:10:32]} a5 {[%emt 0:10:59]} 20. Rc1 {[%emt 0:13:20]} Qa6 {[%emt 0:01:31]} 21. d6 {[%emt 0:02:53]} Bg5 {[%emt 0:00:58]} 22. Rcd1 {[%emt 0:03:13]} Bf6 {[%emt 0:00:06]} 23. Rc4 {[%emt 0:07:53]} Rac8 {[%emt 0:02:36]} 24. Rc5 {[%emt 0:03:03]} b6 {[%emt 0:00:37]} 25. Bc6 {[%emt 0:00:20]} Red8 {[%emt 0:04:32]} 26. Bxd7 {[%emt 0:02:20]} Rxd7 {[%emt 0:00:01]} 27. Bxb6 {[%emt 0:02:21]} Rb8 {[%emt 0:00:03]} 28. Bxa5 {[%emt 0:01:17]} g6 {[%emt 0:00:56]} 29. b4 {[%emt 0:03:42]} Bd8 {[%emt 0:01:40]} 30. Rc6 {[%emt 0:01:56]} Qa8 {[%emt 0:01:19]} 31. Bxd8 {[%emt 0:02:43]} Rbxd8 {[%emt 0:01:05]} 32. a4 {[%emt 0:00:19]} Qb8 {[%emt 0:00:11]} 33. b5 {[%emt 0:00:31]} Rxd6 {[%emt 0:00:20]} 34. Rdxd6 {[%emt 0:00:06]} 1-0

[Event "Norwegian Team Championship 2019"]
[Site "Drammen"]
[Date "2019.06.01"]
[Round "3.20"]
[White "Sidali, Elias Hulleberg"]
[Black "Stenersen, Gudmund"]
[Result "1/2-1/2"]
[ECO "C46"]
[WhiteElo "1953"]
[BlackElo "2183"]
[Annotator "ChessBase"]
[PlyCount "83"]
[EventDate "2019.05.30"]
[EventType "swiss"]
[EventCountry "NOR"]
[SourceTitle "playchess.com"]
[Source "ChessBase"]
[SourceQuality "1"]
[TimeControl "40/5400:1800"]

1. e4 {[%emt 0:00:03]} e5 {[%emt 0:00:04]} 2. Nf3 {[%emt 0:00:07]} Nc6 {[%emt 0:00:04]} 3. Nc3 {[%emt 0:00:03]} Bb4 {[%emt 0:01:09]} 4. Nd5 {[%emt 0:00:01]} Bc5 {[%emt 0:00:11]} 5. c3 {[%emt 0:00:58]} d6 {[%emt 0:01:34]} 6. b4 {[%emt 0:01:18]} Bb6 {[%emt 0:01:32]} 7. a4 {[%emt 0:00:17]} a5 {[%emt 0:03:02]} 8. b5 {[%emt 0:01:25]} Nb8 {[%emt 0:04:15]} 9. Nxb6 {[%emt 0:00:26]} cxb6 {[%emt 0:00:06]} 10. d4 {[%emt 0:07:33]} Qc7 {[%emt 0:02:25]} 11. c4 {[%emt 0:00:27]} Nf6 {[%emt 0:02:17]} 12. Ba3 {[%emt 0:10:09]} Nxe4 {[%emt 0:12:31]} 13. dxe5 {[%emt 0:00:14]} dxe5 {[%emt 0:01:08]} 14. Qd5 {[%emt 0:02:13]} Nc5 {[%emt 0:00:26]} 15. Bxc5 {[%emt 0:02:53]} bxc5 {[%emt 0:01:10]} 16. Qxe5+ {[%emt 0:00:55]} Qxe5+ {[%emt 0:00:11]} 17. Nxe5 {[%emt 0:00:05]} Be6 {[%emt 0:01:50]} 18. O-O-O {[%emt 0:01:10]} Ke7 {[%emt 0:04:06]} 19. Kb2 {[%emt 0:03:48]} Rc8 {[%emt 0:04:33]} 20. Be2 {[%emt 0:00:40]} f6 {[%emt 0:00:36]} 21. Ng4 {[%emt 0:00:00]} Nd7 {[%emt 0:01:21]} 22. Bf3 {[%emt 0:01:16]} Nb6 {[%emt 0:05:29]} 23. Rhe1 {[%emt 0:00:17]} Kf7 {[%emt 0:04:46]} 24. Ne3 {[%emt 0:01:53]} Rd8 {[%emt 0:07:45]} 25. Kb3 {[%emt 0:02:30]} Rd4 {[%emt 0:02:19]} 26. Rxd4 {[%emt 0:00:12]} cxd4 {[%emt 0:00:06]} 27. Nd5 {[%emt 0:00:04]} Bxd5 {[%emt 0:11:31]} 28. Bxd5+ {[%emt 0:00:52]} Nxd5 {[%emt 0:00:14]} 29. cxd5 {[%emt 0:00:09]} Rc8 {[%emt 0:05:25]} 30. Re4 {[%emt 0:00:00]} d3 {[%emt 0:01:31]} 31. d6 {[%emt 0:01:19]} d2 {[%emt 0:00:21]} 32. Rd4 {[%emt 0:00:04]} Ke6 {[%emt 0:00:28]} 33. Rxd2 {[%emt 0:01:33]} Kd7 {[%emt 0:00:14]} 34. Rd4 {[%emt 0:03:30]} Rc5 {[%emt 0:00:29]} 35. g3 {[%emt 0:00:55]} h5 {[%emt 0:00:32]} 36. f4 {[%emt 0:01:59]} f5 {[%emt 0:00:57]} 37. Rd1 {[%emt 0:02:39]} g6 {[%emt 0:00:19]} 38. Rd4 {[%emt 0:00:30]} b6 {[%emt 0:00:17]} 39. h4 {[%emt 0:00:43]} Rc1 {[%emt 0:00:11]} 40. Rc4 {[%emt 0:00:07]} Rxc4 {[%emt 0:00:21]} 41. Kxc4 {[%emt 0:30:09]} Kxd6 {[%emt 0:30:07]} 42. Kd4 {[%emt 0:00:06]} 1/2-1/2

[Event "Norwegian Team Championship 2019"]
[Site "Drammen"]
[Date "2019.06.01"]
[Round "4.3"]
[White "Altarbosh, Ward"]
[Black "Getz, Nicolai"]
[Result "0-1"]
[ECO "C41"]
[WhiteElo "2250"]
[BlackElo "2380"]
[Annotator "ChessBase"]
[PlyCount "122"]
[EventDate "2019.05.30"]
[EventType "swiss"]
[EventCountry "NOR"]
[SourceTitle "playchess.com"]
[Source "ChessBase"]
[SourceQuality "1"]
[TimeControl "40/5400:1800"]

1. e4 {[%emt 0:00:11]} d6 {[%emt 0:00:06]} 2. d4 {[%emt 0:00:04]} Nf6 {[%emt 0:00:04]} 3. Nc3 {[%emt 0:00:04]} e5 {[%emt 0:00:06]} 4. Bg5 {[%emt 0:00:06]} Be7 {[%emt 0:03:24]} 5. Nf3 {[%emt 0:00:28]} Nbd7 {[%emt 0:00:50]} 6. Qd2 {[%emt 0:00:19]} c6 {[%emt 0:03:59]} 7. h4 {[%emt 0:00:19]} h6 {[%emt 0:02:10]} 8. dxe5 {[%emt 0:01:18]} dxe5 {[%emt 0:06:06]} 9. Bxf6 {[%emt 0:01:12]} Bxf6 {[%emt 0:00:32]} 10. g4 {[%emt 0:01:08]} Nc5 {[%emt 0:02:06]} 11. Qe3 {[%emt 0:00:42]} Qb6 {[%emt 0:03:17]} 12. Rg1 {[%emt 0:00:43]} Ne6 {[%emt 0:16:28]} 13. Qxb6 {[%emt 0:34:46]} axb6 {[%emt 0:00:06]} 14. O-O-O {[%emt 0:01:01]} g6 {[%emt 0:03:04]} 15. Bc4 {[%emt 0:00:11]} b5 {[%emt 0:01:41]} 16. Bb3 {[%emt 0:00:05]} Nc5 {[%emt 0:01:03]} 17. g5 {[%emt 0:01:22]} hxg5 {[%emt 0:00:35]} 18. hxg5 {[%emt 0:00:04]} Bg7 {[%emt 0:01:09]} 19. Kb1 {[%emt 0:02:20]} b4 {[%emt 0:04:57]} 20. Ne2 {[%emt 0:00:16]} Nxe4 {[%emt 0:00:41]} 21. Rde1 {[%emt 0:00:42]} Nxf2 {[%emt 0:06:20]} 22. Nf4 {[%emt 0:05:32]} Ng4 {[%emt 0:01:42]} 23. Nd3 {[%emt 0:01:03]} Ra5 {[%emt 0:03:14]} 24. Nd2 {[%emt 0:04:32]} Bf5 {[%emt 0:03:06]} 25. Nc4 {[%emt 0:02:44]} Rd5 {[%emt 0:00:36]} 26. Nxb4 {[%emt 0:02:38]} Rd4 {[%emt 0:00:56]} 27. a3 {[%emt 0:02:24]} Rh2 {[%emt 0:02:33]} 28. Ka2 {[%emt 0:00:52]} Kd8 {[%emt 0:03:11]} 29. c3 {[%emt 0:02:35]} Rd7 {[%emt 0:00:50]} 30. Rd1 {[%emt 0:05:26]} Nf2 {[%emt 0:04:22]} 31. Rxd7+ {[%emt 0:03:56]} Kxd7 {[%emt 0:00:05]} 32. Ne3 {[%emt 0:02:00]} Be6 {[%emt 0:00:12]} 33. Nf1 {[%emt 0:02:24]} Rh5 {[%emt 0:02:43]} 34. Rg2 {[%emt 0:04:00]} Ne4 {[%emt 0:00:16]} 35. Bxe6+ {[%emt 0:00:41]} Kxe6 {[%emt 0:00:07]} 36. Nd3 {[%emt 0:00:07]} Kd6 {[%emt 0:04:22]} 37. Nd2 {[%emt 0:01:04]} Nxd2 {[%emt 0:00:23]} 38. Rxd2 {[%emt 0:00:03]} Rxg5 {[%emt 0:00:24]} 39. b4 {[%emt 0:00:02]} b6 {[%emt 0:01:39]} 40. a4 {[%emt 0:00:23]} Kc7 {[%emt 0:00:18]} 41. a5 {[%emt 0:30:05]} bxa5 {[%emt 0:30:11]} 42. Nc5 {[%emt 0:00:01]} Rf5 {[%emt 0:00:00]} 43. Kb3 {[%emt 0:00:00]} axb4 {[%emt 0:00:00]} 44. cxb4 {[%emt 0:00:00]} Bf8 {[%emt 0:00:00]} 45. Rd7+ {[%emt 0:00:00]} Kc8 {[%emt 0:00:00]} 46. Ra7 {[%emt 0:00:00]} Bxc5 {[%emt 0:00:00]} 47. bxc5 {[%emt 0:00:00]} Rf4 {[%emt 0:00:00]} 48. Re7 {[%emt 0:00:00]} f6 {[%emt 0:00:00]} 49. Rg7 {[%emt 0:00:00]} g5 {[%emt 0:00:00]} 50. Kc3 {[%emt 0:00:00]} g4 {[%emt 0:00:00]} 51. Kb3 {[%emt 0:00:00]} Kd8 {[%emt 0:00:00]} 52. Kc3 {[%emt 0:00:00]} f5 {[%emt 0:00:00]} 53. Kb3 {[%emt 0:00:00]} Ke8 {[%emt 0:00:00]} 54. Kc3 {[%emt 0:00:00]} Kf8 {[%emt 0:00:00]} 55. Rg6 {[%emt 0:00:00]} Ke7 {[%emt 0:00:00]} 56. Kd3 {[%emt 0:00:00]} Rd4+ {[%emt 0:00:00]} 57. Ke2 {[%emt 0:00:00]} Kd7 {[%emt 0:00:00]} 58. Rf6 {[%emt 0:00:00]} f4 {[%emt 0:00:00]} 59. Rg6 {[%emt 0:00:00]} g3 {[%emt 0:00:00]} 60. Kf3 {[%emt 0:00:00]} Rd5 {[%emt 0:00:00]} 61. Rg7+ {[%emt 0:00:00]} Kc8 {[%emt 0:00:00]} 0-1

[Event "Norwegian Team Championship 2019"]
[Site "Drammen"]
[Date "2019.06.01"]
[Round "4.4"]
[White "Galinsky, Timofey"]
[Black "Kristiansen, Erling"]
[Result "1-0"]
[ECO "A05"]
[WhiteElo "2382"]
[BlackElo "2159"]
[Annotator "ChessBase"]
[PlyCount "57"]
[EventDate "2019.05.30"]
[EventType "swiss"]
[EventCountry "NOR"]
[SourceTitle "playchess.com"]
[Source "ChessBase"]
[SourceQuality "1"]
[TimeControl "40/5400:1800"]

1. Nf3 {[%emt 0:00:06]} Nf6 {[%emt 0:00:20]} 2. d3 {[%emt 0:00:26]} c5 {[%emt 0:00:10]} 3. e4 {[%emt 0:00:43]} d6 {[%emt 0:00:12]} 4. g3 {[%emt 0:01:18]} Nc6 {[%emt 0:00:26]} 5. Bg2 {[%emt 0:00:22]} g6 {[%emt 0:00:21]} 6. O-O {[%emt 0:00:58]} Bg7 {[%emt 0:00:11]} 7. Re1 {[%emt 0:02:30]} O-O {[%emt 0:00:21]} 8. c3 {[%emt 0:01:00]} Bd7 {[%emt 0:03:20]} 9. h3 {[%emt 0:06:50]} Rc8 {[%emt 0:03:33]} 10. Be3 {[%emt 0:05:13]} b5 {[%emt 0:00:23]} 11. Nbd2 {[%emt 0:01:03]} b4 {[%emt 0:01:05]} 12. a3 {[%emt 0:06:07]} bxc3 {[%emt 0:00:17]} 13. bxc3 {[%emt 0:00:04]} Qa5 {[%emt 0:02:00]} 14. Nc4 {[%emt 0:09:14]} Qa6 {[%emt 0:00:11]} 15. Bf1 {[%emt 0:00:06]} Na5 {[%emt 0:02:33]} 16. Ncd2 {[%emt 0:00:06]} Rfd8 {[%emt 0:09:12]} 17. Rb1 {[%emt 0:03:12]} Rb8 {[%emt 0:02:00]} 18. d4 {[%emt 0:01:03]} Rxb1 {[%emt 0:00:29]} 19. Qxb1 {[%emt 0:00:29]} Qc8 {[%emt 0:00:09]} 20. Qd3 {[%emt 0:04:36]} c4 {[%emt 0:01:25]} 21. Qc2 {[%emt 0:00:16]} d5 {[%emt 0:05:52]} 22. Bg5 {[%emt 0:03:09]} Nxe4 {[%emt 0:10:48]} 23. Nxe4 {[%emt 0:02:23]} dxe4 {[%emt 0:02:40]} 24. Qxe4 {[%emt 0:01:22]} Re8 {[%emt 0:02:05]} 25. Qd5 {[%emt 0:02:48]} Bc6 {[%emt 0:01:26]} 26. Qxa5 {[%emt 0:00:11]} Bxf3 {[%emt 0:00:03]} 27. Rxe7 {[%emt 0:00:52]} Rf8 {[%emt 0:03:09]} 28. Rxa7 {[%emt 0:03:39]} Qb8 {[%emt 0:03:27]} 29. Qc7 {[%emt 0:02:06]} 1-0